[Event "22nd Ruzomberok Open 2019"]
[Site "Ruzomberok"]
[Date "2019.07.03"]
[Round "5.29"]
[White "Staffen, Robert"]
[Black "Mocary, Metod"]
[Result "0-1"]
[ECO "B08"]
[WhiteElo "1683"]
[BlackElo "1830"]
[Annotator "NA"]
[PlyCount "144"]
[EventDate "2019.06.29"]
[EventType "swiss"]
[EventCountry "SVK"]
[SourceTitle "playchess.com"]
[Source "ChessBase"]
[SourceQuality "1"]
[TimeControl "40/5400+30:1800+30"]

1. e4 {[%emt 0:00:00]} d6 {[%emt 0:00:00]} 2. d4 {[%emt 0:00:00]} Nf6 {[%emt 0:00:00]} 3. Nc3 {[%emt 0:00:00]} g6 {[%emt 0:00:42]} 4. Nf3 {[%emt 0:00:00]} Bg7 {[%emt 0:00:08]} 5. h3 {[%emt 0:00:10]} O-O {[%emt 0:01:32]} 6. Bd3 {[%emt 0:00:26]} c6 {[%emt 0:04:53]} 7. a4 {[%emt 0:00:13]} Nbd7 {[%emt 0:01:27]} 8. O-O e5 9. dxe5 {[%emt 0:08:35]} Nxe5 {[%emt 0:00:58]} 10. Nxe5 {[%emt 0:00:36]} dxe5 {[%emt 0:00:11]} 11. Qf3 {[%emt 0:01:09]} h6 {[%emt 0:08:33]} 12. Bc4 {[%emt 0:03:53]} Kh7 {[%emt 0:06:18]} 13. Rd1 {[%emt 0:02:50]} Qe7 {[%emt 0:00:31]} 14. Be3 {[%emt 0:02:39]} Be6 {[%emt 0:02:02]} 15. Bd3 {[%emt 0:04:30]} Nh5 {[%emt 0:17:46]} 16. Ne2 {[%emt 0:12:00]} Nf6 {[%emt 0:02:11]} 17. Ng3 {[%emt 0:11:52]} b6 {[%emt 0:11:02]} 18. b3 {[%emt 0:07:46]} Rfd8 {[%emt 0:12:29]} 19. Bc1 {[%emt 0:01:17]} Nd7 {[%emt 0:05:44]} 20. Ba3 {[%emt 0:02:50]} Qf6 {[%emt 0:03:32]} 21. Qe3 {[%emt 0:03:13]} Bf8 {[%emt 0:00:27]} 22. b4 {[%emt 0:06:53]} Qf4 {[%emt 0:01:44]} 23. Qe2 {[%emt 0:02:02]} c5 {[%emt 0:01:46]} 24. Bc1 {[%emt 0:01:46]} Qh4 {[%emt 0:00:30]} 25. Qf3 {[%emt 0:12:53]} Qf6 {[%emt 0:00:59]} 26. Qxf6 {[%emt 0:03:53]} Nxf6 {[%emt 0:00:02]} 27. Bb2 {[%emt 0:00:21]} Nd7 {[%emt 0:00:45]} 28. b5 {[%emt 0:00:36]} f6 {[%emt 0:01:05]} 29. c4 {[%emt 0:00:21]} a5 {[%emt 0:04:06]} 30. Rd2 {[%emt 0:02:14]} Be7 {[%emt 0:00:29]} 31. Rad1 {[%emt 0:00:11]} Nf8 {[%emt 0:00:19]} 32. Nf1 {[%emt 0:00:32]} g5 {[%emt 0:06:32]} 33. Ne3 {[%emt 0:00:41]} Ng6 {[%emt 0:00:28]} 34. Nd5 {[%emt 0:01:00]} Rd6 {[%emt 0:00:57]} 35. Bc2 {[%emt 0:04:07]} Rad8 {[%emt 0:01:22]} 36. Bc3 {[%emt 0:00:10]} Bxd5 {[%emt 0:00:06]} 37. exd5 {[%emt 0:00:27]} Kg7 {[%emt 0:00:11]} 38. g3 {[%emt 0:01:04]} Nh8 {[%emt 0:00:52]} 39. Bf5 {[%emt 0:00:38]} Nf7 {[%emt 0:01:12]} 40. Kg2 {[%emt 0:00:32]} Rh8 {[%emt 0:00:26]} 41. Rh1 {[%emt 0:31:17]} Rdd8 {[%emt 0:30:13]} 42. h4 {[%emt 0:03:08]} Nd6 {[%emt 0:00:11]} 43. Bc2 {[%emt 0:00:12]} Nxc4 {[%emt 0:01:44]} 44. Rdd1 {[%emt 0:00:30]} Nd6 {[%emt 0:03:02]} 45. Kf3 {[%emt 0:01:28]} Rdg8 {[%emt 0:00:00]} 46. hxg5 {[%emt 0:00:00]} hxg5 {[%emt 0:00:00]} 47. Kg4 {[%emt 0:00:00]} Rxh1 {[%emt 0:00:00]} 48. Rxh1 {[%emt 0:00:00]} Rh8 {[%emt 0:00:00]} 49. Rxh8 {[%emt 0:00:00]} Kxh8 {[%emt 0:00:00]} 50. f4 {[%emt 0:00:00]} gxf4 {[%emt 0:00:00]} 51. gxf4 {[%emt 0:00:00]} exf4 {[%emt 0:00:00]} 52. Kxf4 {[%emt 0:00:00]} Kg7 {[%emt 0:00:00]} 53. Bd3 {[%emt 0:00:00]} Kf7 {[%emt 0:00:00]} 54. Be2 {[%emt 0:00:00]} Bd8 {[%emt 0:00:00]} 55. Ba1 {[%emt 0:00:00]} Bc7 {[%emt 0:00:00]} 56. Kf3 {[%emt 0:00:00]} Ke7 {[%emt 0:00:00]} 57. Bb2 {[%emt 0:00:00]} Nf7 {[%emt 0:00:00]} 58. Ke4 {[%emt 0:00:00]} Be5 {[%emt 0:00:00]} 59. Bc1 {[%emt 0:00:00]} Nd6+ {[%emt 0:00:00]} 60. Kf3 {[%emt 0:00:00]} Nf5 {[%emt 0:00:00]} 61. Ke4 {[%emt 0:00:00]} Ng3+ {[%emt 0:00:00]} 62. Kf3 {[%emt 0:00:00]} Nxe2 {[%emt 0:00:00]} 63. Kxe2 {[%emt 0:00:08]} Kd6 {[%emt 0:00:00]} 64. Kd3 {[%emt 0:00:25]} Kxd5 {[%emt 0:00:00]} 65. Ba3 {[%emt 0:00:28]} f5 {[%emt 0:00:00]} 66. Bc1 {[%emt 0:00:19]} c4+ {[%emt 0:00:00]} 67. Ke2 {[%emt 0:00:12]} Ke4 {[%emt 0:00:00]} 68. Bg5 {[%emt 0:01:45]} c3 {[%emt 0:00:00]} 69. Bh6 {[%emt 0:00:56]} f4 {[%emt 0:00:00]} 70. Ke1 Bd4 71. Ke2 {[%emt 0:01:48]} Be3 {[%emt 0:00:00]} 72. Kd1 {[%emt 0:00:25]} Kd3 {[%emt 0:00:00]} 0-1

[Event "22nd Ruzomberok Open 2019"]
[Site "Ruzomberok"]
[Date "2019.07.03"]
[Round "5.30"]
[White "Bartanus, Stanislav"]
[Black "Demko, Ladislav"]
[Result "1-0"]
[ECO "A21"]
[WhiteElo "1781"]
[BlackElo "1642"]
[Annotator "NA"]
[PlyCount "129"]
[EventDate "2019.06.29"]
[EventType "swiss"]
[EventCountry "SVK"]
[SourceTitle "playchess.com"]
[Source "ChessBase"]
[SourceQuality "1"]
[TimeControl "40/5400+30:1800+30"]

1. c4 {[%emt 0:00:00]} e5 {[%emt 0:00:00]} 2. Nc3 {[%emt 0:00:02]} b6 {[%emt 0:00:00]} 3. Nf3 {[%emt 0:01:07]} d6 {[%emt 0:00:06]} 4. d3 {[%emt 0:00:24]} Bb7 5. g3 Nf6 {[%emt 0:02:42]} 6. Bg2 {[%emt 0:00:40]} Be7 {[%emt 0:01:26]} 7. O-O {[%emt 0:01:46]} O-O {[%emt 0:00:07]} 8. b3 {[%emt 0:02:28]} Nbd7 {[%emt 0:00:17]} 9. Bb2 {[%emt 0:00:19]} Rb8 {[%emt 0:02:02]} 10. Rc1 {[%emt 0:01:16]} a5 {[%emt 0:00:26]} 11. Qc2 {[%emt 0:03:13]} Re8 {[%emt 0:02:47]} 12. Rfd1 {[%emt 0:01:38]} Qc8 {[%emt 0:01:27]} 13. a3 {[%emt 0:07:27]} Nc5 {[%emt 0:14:36]} 14. b4 {[%emt 0:02:50]} axb4 {[%emt 0:00:34]} 15. axb4 {[%emt 0:00:01]} Na6 {[%emt 0:00:16]} 16. Qb3 {[%emt 0:01:51]} c5 {[%emt 0:01:10]} 17. b5 {[%emt 0:00:49]} Nc7 {[%emt 0:00:39]} 18. Ra1 {[%emt 0:01:17]} Ra8 {[%emt 0:00:13]} 19. Rxa8 {[%emt 0:00:11]} Nxa8 {[%emt 0:04:21]} 20. Ra1 {[%emt 0:00:50]} e4 {[%emt 0:02:24]} 21. dxe4 {[%emt 0:02:13]} Nxe4 {[%emt 0:00:08]} 22. Nxe4 {[%emt 0:01:55]} Bxe4 23. Ra7 Qb8 {[%emt 0:02:51]} 24. Qa2 {[%emt 0:01:30]} Nc7 {[%emt 0:02:47]} 25. Qa1 {[%emt 0:09:43]} f6 {[%emt 0:04:02]} 26. Nh4 {[%emt 0:03:22]} Bxg2 {[%emt 0:00:21]} 27. Kxg2 {[%emt 0:00:14]} Qc8 {[%emt 0:03:18]} 28. e4 {[%emt 0:04:28]} Bf8 {[%emt 0:03:30]} 29. Qb1 {[%emt 0:09:51]} Qb8 {[%emt 0:00:30]} 30. Ra3 {[%emt 0:00:36]} Qb7 {[%emt 0:00:09]} 31. Re3 {[%emt 0:00:35]} Ne6 {[%emt 0:00:21]} 32. Qd3 {[%emt 0:01:05]} Ng5 {[%emt 0:00:26]} 33. f3 {[%emt 0:00:58]} Nf7 {[%emt 0:10:37]} 34. Re2 {[%emt 0:03:24]} Ne5 {[%emt 0:00:32]} 35. Bxe5 {[%emt 0:00:08]} fxe5 {[%emt 0:02:40]} 36. Nf5 {[%emt 0:00:43]} Rd8 {[%emt 0:02:18]} 37. Ne3 {[%emt 0:02:31]} Kh8 {[%emt 0:00:57]} 38. Nd5 {[%emt 0:00:09]} Ra8 {[%emt 0:00:32]} 39. Qb3 {[%emt 0:04:36]} Ra5 {[%emt 0:02:51]} 40. Ra2 {[%emt 0:01:10]} Qa7 {[%emt 0:00:23]} 41. Rxa5 {[%emt 0:30:07]} Qxa5 {[%emt 0:30:05]} 42. Qc3 {[%emt 0:00:19]} Qa2+ {[%emt 0:00:12]} 43. Kh3 {[%emt 0:00:08]} Qf2 {[%emt 0:00:28]} 44. Nxb6 {[%emt 0:02:03]} Qf1+ {[%emt 0:00:23]} 45. Kg4 {[%emt 0:00:39]} g6 {[%emt 0:00:28]} 46. Nd5 {[%emt 0:01:35]} h5+ {[%emt 0:00:36]} 47. Kg5 {[%emt 0:01:11]} Qh3 48. g4 hxg4 {[%emt 0:07:22]} 49. fxg4 {[%emt 0:00:38]} Bh6+ 50. Kxg6 Qh4 {[%emt 0:02:49]} 51. Qf3 {[%emt 0:03:56]} Qg5+ {[%emt 0:00:21]} 52. Kf7 {[%emt 0:00:08]} Qg7+ {[%emt 0:00:40]} 53. Ke6 {[%emt 0:01:06]} Bf4 {[%emt 0:01:21]} 54. Nxf4 {[%emt 0:01:10]} Qg8+ {[%emt 0:00:14]} 55. Kxd6 {[%emt 0:00:33]} Qf8+ 56. Kxe5 Qg7+ {[%emt 0:01:57]} 57. Kf5 {[%emt 0:01:03]} Qf7+ 58. Kg5 Qe7+ 59. Kf5 Qf7+ 60. Ke5 Qg7+ 61. Kd5 Qd4+ {[%emt 0:05:31]} 62. Kc6 {[%emt 0:02:27]} Qxc4 {[%emt 0:00:52]} 63. Nd5 {[%emt 0:00:58]} Qd4 64. Qf6+ Qxf6+ {[%emt 0:07:09]} 65. Nxf6 {[%emt 0:01:06]} 1-0

[Event "22nd Ruzomberok Open 2019"]
[Site "Ruzomberok"]
[Date "2019.07.03"]
[Round "5.31"]
[White "Mudron, Jan"]
[Black "Majerova, Veronika"]
[Result "1/2-1/2"]
[ECO "E91"]
[WhiteElo "1756"]
[BlackElo "1531"]
[Annotator "NA"]
[PlyCount "65"]
[EventDate "2019.06.29"]
[EventType "swiss"]
[EventCountry "SVK"]
[SourceTitle "playchess.com"]
[Source "ChessBase"]
[SourceQuality "1"]
[TimeControl "40/5400+30:1800+30"]

1. d4 {[%emt 0:00:00]} d6 {[%emt 0:00:00]} 2. c4 {[%emt 0:00:00]} g6 {[%emt 0:00:00]} 3. Nc3 {[%emt 0:00:00]} Bg7 {[%emt 0:00:13]} 4. e4 {[%emt 0:00:24]} Nf6 {[%emt 0:00:14]} 5. Nf3 {[%emt 0:00:16]} O-O {[%emt 0:00:13]} 6. Be2 {[%emt 0:00:10]} c6 {[%emt 0:00:58]} 7. O-O {[%emt 0:00:08]} e5 {[%emt 0:00:25]} 8. Be3 {[%emt 0:00:57]} Re8 {[%emt 0:01:19]} 9. Qc2 {[%emt 0:00:37]} Qc7 {[%emt 0:04:38]} 10. d5 {[%emt 0:00:35]} Ng4 {[%emt 0:03:22]} 11. Bc1 {[%emt 0:17:37]} f5 {[%emt 0:04:01]} 12. Nd2 {[%emt 0:04:39]} Nh6 {[%emt 0:04:02]} 13. Bd3 {[%emt 0:05:45]} Na6 {[%emt 0:03:07]} 14. a3 {[%emt 0:01:49]} Nc5 {[%emt 0:00:48]} 15. b4 {[%emt 0:04:01]} Nxd3 {[%emt 0:00:56]} 16. Qxd3 {[%emt 0:01:04]} c5 {[%emt 0:07:02]} 17. b5 {[%emt 0:02:33]} f4 {[%emt 0:05:55]} 18. f3 {[%emt 0:09:34]} Qe7 {[%emt 0:06:30]} 19. Qe2 {[%emt 0:02:29]} g5 {[%emt 0:03:11]} 20. Kf2 {[%emt 0:01:00]} g4 {[%emt 0:01:46]} 21. Ke1 {[%emt 0:00:34]} Qh4+ {[%emt 0:01:04]} 22. Kd1 {[%emt 0:00:04]} Qxh2 {[%emt 0:03:46]} 23. Bb2 {[%emt 0:00:11]} Bf6 {[%emt 0:09:41]} 24. Kc2 {[%emt 0:00:15]} gxf3 {[%emt 0:04:46]} 25. gxf3 {[%emt 0:01:17]} Qxe2 {[%emt 0:01:16]} 26. Nxe2 {[%emt 0:00:03]} Kh8 {[%emt 0:01:05]} 27. Nxf4 {[%emt 0:00:36]} Rg8 {[%emt 0:04:00]} 28. Rg1 {[%emt 0:00:33]} Bd7 {[%emt 0:01:55]} 29. Nh5 {[%emt 0:05:32]} Raf8 {[%emt 0:04:21]} 30. Nxf6 {[%emt 0:06:08]} Rxf6 {[%emt 0:00:20]} 31. Rxg8+ {[%emt 0:01:04]} Kxg8 {[%emt 0:00:15]} 32. Rg1+ {[%emt 0:00:46]} Kf8 {[%emt 0:00:40]} 33. Kd3 {[%emt 0:03:37]} 1/2-1/2

[Event "22nd Ruzomberok Open 2019"]
[Site "Ruzomberok"]
[Date "2019.07.03"]
[Round "5.32"]
[White "Jakab, Stefan"]
[Black "Zilkay, Dominik"]
[Result "1/2-1/2"]
[ECO "B33"]
[WhiteElo "1751"]
[BlackElo "1328"]
[Annotator "NA"]
[PlyCount "76"]
[EventDate "2019.06.29"]
[EventType "swiss"]
[EventCountry "SVK"]
[SourceTitle "playchess.com"]
[Source "ChessBase"]
[SourceQuality "1"]
[TimeControl "40/5400+30:1800+30"]

1. e4 {[%emt 0:00:00]} c5 {[%emt 0:12:35]} 2. Nf3 {[%emt 0:01:09]} Nc6 {[%emt 0:00:02]} 3. d4 {[%emt 0:00:17]} cxd4 {[%emt 0:00:02]} 4. Nxd4 {[%emt 0:00:11]} Nf6 {[%emt 0:00:03]} 5. Nc3 {[%emt 0:00:16]} e5 {[%emt 0:00:04]} 6. Ndb5 {[%emt 0:00:53]} d6 {[%emt 0:00:01]} 7. Bg5 {[%emt 0:01:25]} a6 {[%emt 0:00:02]} 8. Na3 {[%emt 0:00:20]} b5 {[%emt 0:00:01]} 9. Nd5 {[%emt 0:00:43]} Be7 {[%emt 0:00:02]} 10. Bxf6 {[%emt 0:01:00]} Bxf6 {[%emt 0:00:02]} 11. Be2 {[%emt 0:00:56]} O-O {[%emt 0:06:46]} 12. O-O {[%emt 0:00:27]} Nd4 {[%emt 0:06:06]} 13. c3 {[%emt 0:04:52]} Nxe2+ {[%emt 0:04:00]} 14. Qxe2 {[%emt 0:00:08]} Bg5 {[%emt 0:00:15]} 15. Rad1 {[%emt 0:06:44]} f5 {[%emt 0:07:51]} 16. f4 {[%emt 0:01:13]} exf4 {[%emt 0:00:15]} 17. Nxf4 {[%emt 0:00:35]} Qb6+ {[%emt 0:10:16]} 18. Kh1 {[%emt 0:01:33]} Kh8 {[%emt 0:02:21]} 19. Qh5 {[%emt 0:05:36]} Bxf4 {[%emt 0:04:52]} 20. Rxf4 {[%emt 0:00:33]} Qe3 {[%emt 0:01:44]} 21. Rdf1 {[%emt 0:03:00]} g6 {[%emt 0:03:05]} 22. Qd1 {[%emt 0:01:24]} Qc5 {[%emt 0:02:03]} 23. exf5 {[%emt 0:01:27]} Rxf5 {[%emt 0:01:47]} 24. Nc2 {[%emt 0:00:49]} Rxf4 {[%emt 0:01:50]} 25. Rxf4 {[%emt 0:00:09]} Bb7 {[%emt 0:02:43]} 26. Qd4+ {[%emt 0:10:19]} Qe5 {[%emt 0:01:14]} 27. Qf2 {[%emt 0:03:14]} Kg8 {[%emt 0:08:15]} 28. h4 {[%emt 0:07:13]} Qd5 {[%emt 0:07:28]} 29. a3 {[%emt 0:08:00]} Re8 {[%emt 0:01:20]} 30. Nd4 {[%emt 0:04:01]} Re1+ {[%emt 0:04:28]} 31. Kh2 {[%emt 0:00:13]} Qe5 {[%emt 0:00:36]} 32. Qg3 {[%emt 0:05:31]} Re3 {[%emt 0:03:36]} 33. Nf3 {[%emt 0:03:42]} Bxf3 {[%emt 0:00:08]} 34. Rxf3 {[%emt 0:00:44]} Qxg3+ {[%emt 0:00:45]} 35. Kxg3 {[%emt 0:00:09]} Re2 {[%emt 0:02:56]} 36. Rf2 {[%emt 0:00:04]} Re6 {[%emt 0:00:50]} 37. Kg4 {[%emt 0:00:48]} Kg7 {[%emt 0:00:21]} 38. g3 {[%emt 0:00:53]} h6 {[%emt 0:00:32]} 1/2-1/2

[Event "22nd Ruzomberok Open 2019"]
[Site "Ruzomberok"]
[Date "2019.07.03"]
[Round "5.33"]
[White "Slivka, Vasil"]
[Black "Gasper, Jaroslav"]
[Result "1-0"]
[ECO "A10"]
[WhiteElo "1562"]
[BlackElo "1772"]
[Annotator "NA"]
[PlyCount "142"]
[EventDate "2019.06.29"]
[EventType "swiss"]
[EventCountry "SVK"]
[SourceTitle "playchess.com"]
[Source "ChessBase"]
[SourceQuality "1"]
[TimeControl "40/5400+30:1800+30"]

1. c4 {[%emt 0:00:00]} b5 {[%emt 0:00:00]} 2. cxb5 {[%emt 0:00:35]} Bb7 {[%emt 0:00:00]} 3. Nc3 {[%emt 0:00:19]} e6 {[%emt 0:00:00]} 4. a3 {[%emt 0:00:19]} d5 {[%emt 0:00:12]} 5. d4 {[%emt 0:00:11]} c5 {[%emt 0:00:23]} 6. Nf3 {[%emt 0:00:22]} cxd4 {[%emt 0:01:17]} 7. Qxd4 {[%emt 0:01:26]} h6 {[%emt 0:00:52]} 8. Bf4 {[%emt 0:00:28]} Nd7 {[%emt 0:00:41]} 9. b4 {[%emt 0:01:22]} Ne7 {[%emt 0:00:17]} 10. e3 {[%emt 0:01:05]} Nf5 {[%emt 0:00:33]} 11. Qd2 {[%emt 0:00:38]} g5 {[%emt 0:00:42]} 12. Bg3 {[%emt 0:01:42]} Bg7 {[%emt 0:00:20]} 13. Rc1 {[%emt 0:01:23]} Rc8 {[%emt 0:00:21]} 14. Bd3 {[%emt 0:01:47]} Nxg3 {[%emt 0:01:16]} 15. hxg3 {[%emt 0:00:09]} Nf6 {[%emt 0:05:14]} 16. Nd4 {[%emt 0:02:41]} Ng4 {[%emt 0:02:06]} 17. Be2 {[%emt 0:00:51]} Ne5 {[%emt 0:01:26]} 18. O-O {[%emt 0:01:42]} h5 {[%emt 0:04:04]} 19. Na4 {[%emt 0:00:33]} Nc4 {[%emt 0:00:56]} 20. Bxc4 {[%emt 0:00:29]} dxc4 {[%emt 0:01:05]} 21. Qc3 {[%emt 0:03:05]} Qd5 {[%emt 0:01:28]} 22. f3 {[%emt 0:00:51]} g4 {[%emt 0:02:37]} 23. Nc5 {[%emt 0:03:27]} Ba8 {[%emt 0:21:21]} 24. Qxc4 {[%emt 0:03:50]} Qe5 {[%emt 0:00:45]} 25. Qe2 {[%emt 0:05:24]} gxf3 {[%emt 0:04:36]} 26. Nxf3 {[%emt 0:02:20]} Qxg3 {[%emt 0:00:58]} 27. Qf2 {[%emt 0:01:03]} Qg4 {[%emt 0:06:44]} 28. Nd4 {[%emt 0:03:52]} O-O {[%emt 0:01:44]} 29. Rc2 {[%emt 0:06:10]} Be5 {[%emt 0:03:00]} 30. Nc6 {[%emt 0:03:52]} Bxc6 {[%emt 0:11:56]} 31. bxc6 {[%emt 0:00:19]} Bg3 {[%emt 0:01:33]} 32. Qf6 {[%emt 0:02:24]} Rxc6 {[%emt 0:03:07]} 33. Rd2 {[%emt 0:03:18]} Bh4 {[%emt 0:18:52]} 34. Qf3 {[%emt 0:02:29]} Qxf3 {[%emt 0:03:18]} 35. gxf3 {[%emt 0:00:50]} Be7 {[%emt 0:00:09]} 36. Ne4 {[%emt 0:01:14]} Rc7 {[%emt 0:00:30]} 37. Rfd1 {[%emt 0:00:34]} f5 {[%emt 0:00:04]} 38. Nf2 {[%emt 0:00:56]} Kf7 {[%emt 0:00:03]} 39. f4 {[%emt 0:05:05]} Rg8+ {[%emt 0:00:02]} 40. Kf1 {[%emt 0:00:47]} Kf6 {[%emt 0:00:01]} 41. Nh3 {[%emt 0:31:00]} Rg3 {[%emt 0:30:16]} 42. Ng5 {[%emt 0:00:52]} Rxe3 {[%emt 0:00:19]} 43. Rh2 {[%emt 0:01:20]} Kg6 {[%emt 0:01:15]} 44. Kf2 {[%emt 0:02:56]} Rxa3 {[%emt 0:00:34]} 45. Nxe6 {[%emt 0:00:49]} Rc2+ {[%emt 0:00:15]} 46. Kg1 {[%emt 0:00:28]} Rxh2 {[%emt 0:01:07]} 47. Kxh2 {[%emt 0:00:06]} Bxb4 {[%emt 0:00:13]} 48. Ng5 {[%emt 0:00:44]} Ra2+ {[%emt 0:00:48]} 49. Kg3 {[%emt 0:00:27]} Rd2 {[%emt 0:00:29]} 50. Rc1 {[%emt 0:00:59]} a5 {[%emt 0:00:31]} 51. Rc8 {[%emt 0:01:10]} Rd3+ {[%emt 0:00:21]} 52. Kg2 {[%emt 0:00:31]} h4 {[%emt 0:01:01]} 53. Rg8+ {[%emt 0:00:25]} Kh5 {[%emt 0:00:14]} 54. Nf3 {[%emt 0:00:35]} h3+ {[%emt 0:00:41]} 55. Kf2 {[%emt 0:00:38]} Bc5+ {[%emt 0:00:12]} 56. Kg3 {[%emt 0:00:44]} Kh6 {[%emt 0:00:00]} 57. Rh8+ {[%emt 0:00:00]} Kg7 {[%emt 0:00:00]} 58. Rxh3 {[%emt 0:00:00]} a4 {[%emt 0:00:00]} 59. Rh2 {[%emt 0:00:00]} a3 {[%emt 0:00:00]} 60. Rc2 {[%emt 0:00:00]} Bf8 {[%emt 0:00:00]} 61. Kg2 {[%emt 0:00:00]} Rb3 {[%emt 0:00:00]} 62. Rc7+ {[%emt 0:00:00]} Kf6 63. Rc6+ Ke7 {[%emt 0:00:00]} 64. Ra6 {[%emt 0:00:00]} Kd7 {[%emt 0:00:00]} 65. Ne5+ {[%emt 0:00:00]} Kc7 {[%emt 0:00:00]} 66. Nc4 {[%emt 0:00:00]} Rb2+ {[%emt 0:00:00]} 67. Kf3 {[%emt 0:00:00]} Rb3+ {[%emt 0:00:00]} 68. Ke2 {[%emt 0:00:00]} Rh3 {[%emt 0:00:00]} 69. Ne3 {[%emt 0:00:00]} Bc5 {[%emt 0:00:00]} 70. Nxf5 {[%emt 0:00:00]} a2 {[%emt 0:00:00]} 71. Ne3 Rh2+ {Nc4 Rh3 Na3 Rxa3} 1-0

[Event "22nd Ruzomberok Open 2019"]
[Site "Ruzomberok"]
[Date "2019.07.03"]
[Round "5.33"]
[White "Slivka, Vasil"]
[Black "Gasper, Jaroslav"]
[Result "0-1"]
[ECO "A10"]
[WhiteElo "1562"]
[BlackElo "1772"]
[Annotator "NA"]
[PlyCount "142"]
[EventDate "2019.06.29"]
[EventType "swiss"]
[EventCountry "SVK"]
[SourceTitle "playchess.com"]
[Source "ChessBase"]
[SourceQuality "1"]
[TimeControl "40/5400+30:1800+30"]

1. c4 {[%emt 0:00:00]} b5 {[%emt 0:00:00]} 2. cxb5 {[%emt 0:00:35]} Bb7 {[%emt 0:00:00]} 3. Nc3 {[%emt 0:00:19]} e6 {[%emt 0:00:00]} 4. a3 {[%emt 0:00:19]} d5 {[%emt 0:00:12]} 5. d4 {[%emt 0:00:11]} c5 {[%emt 0:00:23]} 6. Nf3 {[%emt 0:00:22]} cxd4 {[%emt 0:01:17]} 7. Qxd4 {[%emt 0:01:26]} h6 {[%emt 0:00:52]} 8. Bf4 {[%emt 0:00:28]} Nd7 {[%emt 0:00:41]} 9. b4 {[%emt 0:01:22]} Ne7 {[%emt 0:00:17]} 10. e3 {[%emt 0:01:05]} Nf5 {[%emt 0:00:33]} 11. Qd2 {[%emt 0:00:38]} g5 {[%emt 0:00:42]} 12. Bg3 {[%emt 0:01:42]} Bg7 {[%emt 0:00:20]} 13. Rc1 {[%emt 0:01:23]} Rc8 {[%emt 0:00:21]} 14. Bd3 {[%emt 0:01:47]} Nxg3 {[%emt 0:01:16]} 15. hxg3 {[%emt 0:00:09]} Nf6 {[%emt 0:05:14]} 16. Nd4 {[%emt 0:02:41]} Ng4 {[%emt 0:02:06]} 17. Be2 {[%emt 0:00:51]} Ne5 {[%emt 0:01:26]} 18. O-O {[%emt 0:01:42]} h5 {[%emt 0:04:04]} 19. Na4 {[%emt 0:00:33]} Nc4 {[%emt 0:00:56]} 20. Bxc4 {[%emt 0:00:29]} dxc4 {[%emt 0:01:05]} 21. Qc3 {[%emt 0:03:05]} Qd5 {[%emt 0:01:28]} 22. f3 {[%emt 0:00:51]} g4 {[%emt 0:02:37]} 23. Nc5 {[%emt 0:03:27]} Ba8 {[%emt 0:21:21]} 24. Qxc4 {[%emt 0:03:50]} Qe5 {[%emt 0:00:45]} 25. Qe2 {[%emt 0:05:24]} gxf3 {[%emt 0:04:36]} 26. Nxf3 {[%emt 0:02:20]} Qxg3 {[%emt 0:00:58]} 27. Qf2 {[%emt 0:01:03]} Qg4 {[%emt 0:06:44]} 28. Nd4 {[%emt 0:03:52]} O-O {[%emt 0:01:44]} 29. Rc2 {[%emt 0:06:10]} Be5 {[%emt 0:03:00]} 30. Nc6 {[%emt 0:03:52]} Bxc6 {[%emt 0:11:56]} 31. bxc6 {[%emt 0:00:19]} Bg3 {[%emt 0:01:33]} 32. Qf6 {[%emt 0:02:24]} Rxc6 {[%emt 0:03:07]} 33. Rd2 {[%emt 0:03:18]} Bh4 {[%emt 0:18:52]} 34. Qf3 {[%emt 0:02:29]} Qxf3 {[%emt 0:03:18]} 35. gxf3 {[%emt 0:00:50]} Be7 {[%emt 0:00:09]} 36. Ne4 {[%emt 0:01:14]} Rc7 {[%emt 0:00:30]} 37. Rfd1 {[%emt 0:00:34]} f5 {[%emt 0:00:04]} 38. Nf2 {[%emt 0:00:56]} Kf7 {[%emt 0:00:03]} 39. f4 {[%emt 0:05:05]} Rg8+ {[%emt 0:00:02]} 40. Kf1 {[%emt 0:00:47]} Kf6 {[%emt 0:00:01]} 41. Nh3 {[%emt 0:31:00]} Rg3 {[%emt 0:30:16]} 42. Ng5 {[%emt 0:00:52]} Rxe3 {[%emt 0:00:19]} 43. Rh2 {[%emt 0:01:20]} Kg6 {[%emt 0:01:15]} 44. Kf2 {[%emt 0:02:56]} Rxa3 {[%emt 0:00:34]} 45. Nxe6 {[%emt 0:00:49]} Rc2+ {[%emt 0:00:15]} 46. Kg1 {[%emt 0:00:28]} Rxh2 {[%emt 0:01:07]} 47. Kxh2 {[%emt 0:00:06]} Bxb4 {[%emt 0:00:13]} 48. Ng5 {[%emt 0:00:44]} Ra2+ {[%emt 0:00:48]} 49. Kg3 {[%emt 0:00:27]} Rd2 {[%emt 0:00:29]} 50. Rc1 {[%emt 0:00:59]} a5 {[%emt 0:00:31]} 51. Rc8 {[%emt 0:01:10]} Rd3+ {[%emt 0:00:21]} 52. Kg2 {[%emt 0:00:31]} h4 {[%emt 0:01:01]} 53. Rg8+ {[%emt 0:00:25]} Kh5 {[%emt 0:00:14]} 54. Nf3 {[%emt 0:00:35]} h3+ {[%emt 0:00:41]} 55. Kf2 {[%emt 0:00:38]} Bc5+ {[%emt 0:00:12]} 56. Kg3 {[%emt 0:00:44]} Kh6 {[%emt 0:00:00]} 57. Rh8+ {[%emt 0:00:00]} Kg7 {[%emt 0:00:00]} 58. Rxh3 {[%emt 0:00:00]} a4 {[%emt 0:00:00]} 59. Rh2 {[%emt 0:00:00]} a3 {[%emt 0:00:00]} 60. Rc2 {[%emt 0:00:00]} Bf8 {[%emt 0:00:00]} 61. Kg2 {[%emt 0:00:00]} Rb3 {[%emt 0:00:00]} 62. Rc7+ {[%emt 0:00:00]} Kf6 63. Rc6+ Ke7 {[%emt 0:00:00]} 64. Ra6 {[%emt 0:00:00]} Kd7 {[%emt 0:00:00]} 65. Ne5+ {[%emt 0:00:00]} Kc7 {[%emt 0:00:00]} 66. Nc4 {[%emt 0:00:00]} Rb2+ {[%emt 0:00:00]} 67. Kf3 {[%emt 0:00:00]} Rb3+ {[%emt 0:00:00]} 68. Ke2 {[%emt 0:00:00]} Rh3 {[%emt 0:00:00]} 69. Ne3 {[%emt 0:00:00]} Bc5 {[%emt 0:00:00]} 70. Nxf5 {[%emt 0:00:00]} a2 {[%emt 0:00:00]} 71. Ng7 {[%emt 0:00:00]} Ba3 0-1